{"text_format":"3","workbook":"xlsx","n_sheets":1,"sheets":["Lista zaliha"],"not_rendered":{"defined_names":3},"read":"whole","date_system":"1900"}

{"sheet":"Lista zaliha","index":0,"n_rows":28,"n_cols":12,"rows_kept":28,"merged":[[0,2,0,4],[0,5,0,6]]}
[null,null,"Lista zaliha",null,null,"Markirati stavke označene zastavicom za ponovno poručivanje?",null,"Da"]
[]
[null,"Stavke označene zastavicom za ponovno poručivanje","ID zaliha","Ime","Opis","Jedinična cena","Količina na lageru","Vrednost zaliha","Nivo ponovnog poručivanja","Vreme ponovnog poručivanja u danima","Količina za ponovno poručivanje","Obustaviti?"]
[null,{"$f":"IFERROR((ListaZaliha[[#This Row],[Količina na lageru]]<=ListaZaliha[[#This Row],[Nivo ponovnog poručivanja]])*(ListaZaliha[[#This Row],[Obustaviti?]]=\"\")*valHighlight,0)","v":1},"IN0001","Stavka 1","Opis 1",{"v":51,"d":"51.00 din."},25,{"$f":"ListaZaliha[[#This Row],[Jedinična cena]]*ListaZaliha[[#This Row],[Količina na lageru]]","v":{"v":1275,"d":"1,275.00 din."}},29,13,50,""]
[null,{"$f":"IFERROR((ListaZaliha[[#This Row],[Količina na lageru]]<=ListaZaliha[[#This Row],[Nivo ponovnog poručivanja]])*(ListaZaliha[[#This Row],[Obustaviti?]]=\"\")*valHighlight,0)","v":1},"IN0002","Stavka 2","Opis 2",{"v":93,"d":"93.00 din."},132,{"$f":"ListaZaliha[[#This Row],[Jedinična cena]]*ListaZaliha[[#This Row],[Količina na lageru]]","v":{"v":12276,"d":"12,276.00 din."}},231,4,50,""]
[null,{"$f":"IFERROR((ListaZaliha[[#This Row],[Količina na lageru]]<=ListaZaliha[[#This Row],[Nivo ponovnog poručivanja]])*(ListaZaliha[[#This Row],[Obustaviti?]]=\"\")*valHighlight,0)","v":0},"IN0003","Stavka 3","Opis 3",{"v":57,"d":"57.00 din."},151,{"$f":"ListaZaliha[[#This Row],[Jedinična cena]]*ListaZaliha[[#This Row],[Količina na lageru]]","v":{"v":8607,"d":"8,607.00 din."}},114,11,150,""]
[null,{"$f":"IFERROR((ListaZaliha[[#This Row],[Količina na lageru]]<=ListaZaliha[[#This Row],[Nivo ponovnog poručivanja]])*(ListaZaliha[[#This Row],[Obustaviti?]]=\"\")*valHighlight,0)","v":0},"IN0004","Stavka 4","Opis 4",{"v":19,"d":"19.00 din."},186,{"$f":"ListaZaliha[[#This Row],[Jedinična cena]]*ListaZaliha[[#This Row],[Količina na lageru]]","v":{"v":3534,"d":"3,534.00 din."}},158,6,50,""]
[null,{"$f":"IFERROR((ListaZaliha[[#This Row],[Količina na lageru]]<=ListaZaliha[[#This Row],[Nivo ponovnog poručivanja]])*(ListaZaliha[[#This Row],[Obustaviti?]]=\"\")*valHighlight,0)","v":0},"IN0005","Stavka 5","Opis 5",{"v":75,"d":"75.00 din."},62,{"$f":"ListaZaliha[[#This Row],[Jedinična cena]]*ListaZaliha[[#This Row],[Količina na lageru]]","v":{"v":4650,"d":"4,650.00 din."}},39,12,50,""]
[null,{"$f":"IFERROR((ListaZaliha[[#This Row],[Količina na lageru]]<=ListaZaliha[[#This Row],[Nivo ponovnog poručivanja]])*(ListaZaliha[[#This Row],[Obustaviti?]]=\"\")*valHighlight,0)","v":1},"IN0006","Stavka 6","Opis 6",{"v":11,"d":"11.00 din."},5,{"$f":"ListaZaliha[[#This Row],[Jedinična cena]]*ListaZaliha[[#This Row],[Količina na lageru]]","v":{"v":55,"d":"55.00 din."}},9,13,150,""]
[null,{"$f":"IFERROR((ListaZaliha[[#This Row],[Količina na lageru]]<=ListaZaliha[[#This Row],[Nivo ponovnog poručivanja]])*(ListaZaliha[[#This Row],[Obustaviti?]]=\"\")*valHighlight,0)","v":0},"IN0007","Stavka 7","Opis 7",{"v":56,"d":"56.00 din."},58,{"$f":"ListaZaliha[[#This Row],[Jedinična cena]]*ListaZaliha[[#This Row],[Količina na lageru]]","v":{"v":3248,"d":"3,248.00 din."}},109,7,100,"da"]
[null,{"$f":"IFERROR((ListaZaliha[[#This Row],[Količina na lageru]]<=ListaZaliha[[#This Row],[Nivo ponovnog poručivanja]])*(ListaZaliha[[#This Row],[Obustaviti?]]=\"\")*valHighlight,0)","v":1},"IN0008","Stavka 8","Opis 8",{"v":38,"d":"38.00 din."},101,{"$f":"ListaZaliha[[#This Row],[Jedinična cena]]*ListaZaliha[[#This Row],[Količina na lageru]]","v":{"v":3838,"d":"3,838.00 din."}},162,3,100,""]
[null,{"$f":"IFERROR((ListaZaliha[[#This Row],[Količina na lageru]]<=ListaZaliha[[#This Row],[Nivo ponovnog poručivanja]])*(ListaZaliha[[#This Row],[Obustaviti?]]=\"\")*valHighlight,0)","v":0},"IN0009","Stavka 9","Opis 9",{"v":59,"d":"59.00 din."},122,{"$f":"ListaZaliha[[#This Row],[Jedinična cena]]*ListaZaliha[[#This Row],[Količina na lageru]]","v":{"v":7198,"d":"7,198.00 din."}},82,3,150,""]
[null,{"$f":"IFERROR((ListaZaliha[[#This Row],[Količina na lageru]]<=ListaZaliha[[#This Row],[Nivo ponovnog poručivanja]])*(ListaZaliha[[#This Row],[Obustaviti?]]=\"\")*valHighlight,0)","v":1},"IN0010","Stavka 10","Opis 10",{"v":50,"d":"50.00 din."},175,{"$f":"ListaZaliha[[#This Row],[Jedinična cena]]*ListaZaliha[[#This Row],[Količina na lageru]]","v":{"v":8750,"d":"8,750.00 din."}},283,8,150,""]
[null,{"$f":"IFERROR((ListaZaliha[[#This Row],[Količina na lageru]]<=ListaZaliha[[#This Row],[Nivo ponovnog poručivanja]])*(ListaZaliha[[#This Row],[Obustaviti?]]=\"\")*valHighlight,0)","v":1},"IN0011","Stavka 11","Opis 11",{"v":59,"d":"59.00 din."},176,{"$f":"ListaZaliha[[#This Row],[Jedinična cena]]*ListaZaliha[[#This Row],[Količina na lageru]]","v":{"v":10384,"d":"10,384.00 din."}},229,1,100,""]
[null,{"$f":"IFERROR((ListaZaliha[[#This Row],[Količina na lageru]]<=ListaZaliha[[#This Row],[Nivo ponovnog poručivanja]])*(ListaZaliha[[#This Row],[Obustaviti?]]=\"\")*valHighlight,0)","v":1},"IN0012","Stavka 12","Opis 12",{"v":18,"d":"18.00 din."},22,{"$f":"ListaZaliha[[#This Row],[Jedinična cena]]*ListaZaliha[[#This Row],[Količina na lageru]]","v":{"v":396,"d":"396.00 din."}},36,12,50,""]
[null,{"$f":"IFERROR((ListaZaliha[[#This Row],[Količina na lageru]]<=ListaZaliha[[#This Row],[Nivo ponovnog poručivanja]])*(ListaZaliha[[#This Row],[Obustaviti?]]=\"\")*valHighlight,0)","v":1},"IN0013","Stavka 13","Opis 13",{"v":26,"d":"26.00 din."},72,{"$f":"ListaZaliha[[#This Row],[Jedinična cena]]*ListaZaliha[[#This Row],[Količina na lageru]]","v":{"v":1872,"d":"1,872.00 din."}},102,9,100,""]
[null,{"$f":"IFERROR((ListaZaliha[[#This Row],[Količina na lageru]]<=ListaZaliha[[#This Row],[Nivo ponovnog poručivanja]])*(ListaZaliha[[#This Row],[Obustaviti?]]=\"\")*valHighlight,0)","v":1},"IN0014","Stavka 14","Opis 14",{"v":42,"d":"42.00 din."},62,{"$f":"ListaZaliha[[#This Row],[Jedinična cena]]*ListaZaliha[[#This Row],[Količina na lageru]]","v":{"v":2604,"d":"2,604.00 din."}},83,2,100,""]
[null,{"$f":"IFERROR((ListaZaliha[[#This Row],[Količina na lageru]]<=ListaZaliha[[#This Row],[Nivo ponovnog poručivanja]])*(ListaZaliha[[#This Row],[Obustaviti?]]=\"\")*valHighlight,0)","v":0},"IN0015","Stavka 15","Opis 15",{"v":32,"d":"32.00 din."},46,{"$f":"ListaZaliha[[#This Row],[Jedinična cena]]*ListaZaliha[[#This Row],[Količina na lageru]]","v":{"v":1472,"d":"1,472.00 din."}},23,15,50,""]
[null,{"$f":"IFERROR((ListaZaliha[[#This Row],[Količina na lageru]]<=ListaZaliha[[#This Row],[Nivo ponovnog poručivanja]])*(ListaZaliha[[#This Row],[Obustaviti?]]=\"\")*valHighlight,0)","v":1},"IN0016","Stavka 16","Opis 16",{"v":90,"d":"90.00 din."},96,{"$f":"ListaZaliha[[#This Row],[Jedinična cena]]*ListaZaliha[[#This Row],[Količina na lageru]]","v":{"v":8640,"d":"8,640.00 din."}},180,3,50,""]
[null,{"$f":"IFERROR((ListaZaliha[[#This Row],[Količina na lageru]]<=ListaZaliha[[#This Row],[Nivo ponovnog poručivanja]])*(ListaZaliha[[#This Row],[Obustaviti?]]=\"\")*valHighlight,0)","v":0},"IN0017","Stavka 17","Opis 17",{"v":97,"d":"97.00 din."},57,{"$f":"ListaZaliha[[#This Row],[Jedinična cena]]*ListaZaliha[[#This Row],[Količina na lageru]]","v":{"v":5529,"d":"5,529.00 din."}},98,12,50,"Da"]
[null,{"$f":"IFERROR((ListaZaliha[[#This Row],[Količina na lageru]]<=ListaZaliha[[#This Row],[Nivo ponovnog poručivanja]])*(ListaZaliha[[#This Row],[Obustaviti?]]=\"\")*valHighlight,0)","v":1},"IN0018","Stavka 18","Opis 18",{"v":12,"d":"12.00 din."},6,{"$f":"ListaZaliha[[#This Row],[Jedinična cena]]*ListaZaliha[[#This Row],[Količina na lageru]]","v":{"v":72,"d":"72.00 din."}},7,13,50,""]
[null,{"$f":"IFERROR((ListaZaliha[[#This Row],[Količina na lageru]]<=ListaZaliha[[#This Row],[Nivo ponovnog poručivanja]])*(ListaZaliha[[#This Row],[Obustaviti?]]=\"\")*valHighlight,0)","v":1},"IN0019","Stavka 19","Opis 19",{"v":82,"d":"82.00 din."},143,{"$f":"ListaZaliha[[#This Row],[Jedinična cena]]*ListaZaliha[[#This Row],[Količina na lageru]]","v":{"v":11726,"d":"11,726.00 din."}},164,12,150]
[null,{"$f":"IFERROR((ListaZaliha[[#This Row],[Količina na lageru]]<=ListaZaliha[[#This Row],[Nivo ponovnog poručivanja]])*(ListaZaliha[[#This Row],[Obustaviti?]]=\"\")*valHighlight,0)","v":0},"IN0020","Stavka 20","Opis 20",{"v":16,"d":"16.00 din."},124,{"$f":"ListaZaliha[[#This Row],[Jedinična cena]]*ListaZaliha[[#This Row],[Količina na lageru]]","v":{"v":1984,"d":"1,984.00 din."}},113,14,50,""]
[null,{"$f":"IFERROR((ListaZaliha[[#This Row],[Količina na lageru]]<=ListaZaliha[[#This Row],[Nivo ponovnog poručivanja]])*(ListaZaliha[[#This Row],[Obustaviti?]]=\"\")*valHighlight,0)","v":0},"IN0021","Stavka 21","Opis 21",{"v":19,"d":"19.00 din."},112,{"$f":"ListaZaliha[[#This Row],[Jedinična cena]]*ListaZaliha[[#This Row],[Količina na lageru]]","v":{"v":2128,"d":"2,128.00 din."}},75,11,50,""]
[null,{"$f":"IFERROR((ListaZaliha[[#This Row],[Količina na lageru]]<=ListaZaliha[[#This Row],[Nivo ponovnog poručivanja]])*(ListaZaliha[[#This Row],[Obustaviti?]]=\"\")*valHighlight,0)","v":0},"IN0022","Stavka 22","Opis 22",{"v":24,"d":"24.00 din."},182,{"$f":"ListaZaliha[[#This Row],[Jedinična cena]]*ListaZaliha[[#This Row],[Količina na lageru]]","v":{"v":4368,"d":"4,368.00 din."}},132,15,150,""]
[null,{"$f":"IFERROR((ListaZaliha[[#This Row],[Količina na lageru]]<=ListaZaliha[[#This Row],[Nivo ponovnog poručivanja]])*(ListaZaliha[[#This Row],[Obustaviti?]]=\"\")*valHighlight,0)","v":0},"IN0023","Stavka 23","Opis 23",{"v":29,"d":"29.00 din."},106,{"$f":"ListaZaliha[[#This Row],[Jedinična cena]]*ListaZaliha[[#This Row],[Količina na lageru]]","v":{"v":3074,"d":"3,074.00 din."}},142,1,150,"Da"]
[null,{"$f":"IFERROR((ListaZaliha[[#This Row],[Količina na lageru]]<=ListaZaliha[[#This Row],[Nivo ponovnog poručivanja]])*(ListaZaliha[[#This Row],[Obustaviti?]]=\"\")*valHighlight,0)","v":0},"IN0024","Stavka 24","Opis 24",{"v":75,"d":"75.00 din."},173,{"$f":"ListaZaliha[[#This Row],[Jedinična cena]]*ListaZaliha[[#This Row],[Količina na lageru]]","v":{"v":12975,"d":"12,975.00 din."}},127,9,100,""]
[null,{"$f":"IFERROR((ListaZaliha[[#This Row],[Količina na lageru]]<=ListaZaliha[[#This Row],[Nivo ponovnog poručivanja]])*(ListaZaliha[[#This Row],[Obustaviti?]]=\"\")*valHighlight,0)","v":0},"IN0025","Stavka 25","Opis 25",{"v":14,"d":"14.00 din."},28,{"$f":"ListaZaliha[[#This Row],[Jedinična cena]]*ListaZaliha[[#This Row],[Količina na lageru]]","v":{"v":392,"d":"392.00 din."}},21,8,50,""]